Cogmind - Beta 13 @@@ ROGUE MODE // 2024.06.20 @ 19:00:51 Player: doughoff Result: Self-destructed Performance ------------- Evolutions (9) 4500 Regions Visited (13) 2600 Robots Destroyed (57) 285 Value Destroyed (1425) 1425 Prototype IDs (31) 620 Alien Tech Used (0) 0 Bonus (340) 340 TOTAL SCORE: 9770 Bonus ------- Follower Combat Kills 40 Aligned with FarCom 300 Cogmind --------- Core Integrity 1042/1600 Matter 134/300 Energy 177/180 System Corruption 11% Temperature Cool (6) Movement Hovering (111) Ox1 Location -1/Access Parts ------- > --- POWER (2) -------- Light Particle Reactor > --- PROPULSION (6) --- Antigrav System Linear Gravjet Improved Linear Gravjet > --- UTILITY (15) ----- Lightpack 2.0 Experimental Optical Array Advanced Hacking Suite Advanced Hacking Suite Advanced Hacking Suite Improved System Shield > --- WEAPON (2) ------- Enhanced Nova Cannon Plasma Sword > --- INVENTORY (40) --- Compact Wheel Improved Antigrav System Improved Gyrokinetic Inverter VTOL Module Improved VTOL Module Improved VTOL Module Cooled Q-thruster Advanced Coolant Injector Advanced Sensor Array Seismic Detector Core Analyzer Quantum Capacitor Advanced ECM Suite Phase Shifter Advanced Force Field System Shield Authchip [Weapon] Heavy Plasma Cannon Rocket Launcher Plasma Sword Lance Kinetic Spear Peak State ------------ > --- POWER ------------ Light Particle Reactor Micro Antimatter Reactor > --- PROPULSION ------- Cooled Airjet Improved Linear Gravjet Improved Linear Gravjet Antigrav Array Combat Linear Gravjet > --- UTILITY ---------- Lightpack 2.0 Structural Scanner Experimental Optical Array Stasis Canceller Improved Transmission Jammer Advanced Reaction Control System Improved Propulsion Shielding Advanced Hacking Suite Advanced Hacking Suite Advanced Hacking Suite Advanced Hacking Suite Improved System Shield Advanced System Shield > --- WEAPON ----------- Enhanced Nova Cannon Molecular Scythe > --- INVENTORY -------- Light Angular Momentum Engine Micro Fission Core Light Particle Reactor Compact Wheel Gravmag System Improved Gravmag System Antigrav System Linear Gravjet Linear Gravjet Improved Antigrav System Improved Gyrokinetic Inverter Improved Linear Gravjet VTOL Module Improved VTOL Module Improved VTOL Module Cooled Q-thruster Advanced Coolant Injector Advanced Sensor Array Seismic Detector Core Analyzer Quantum Capacitor Advanced ECM Suite Phase Shifter Advanced Force Field System Shield Authchip [Weapon] Heavy Plasma Cannon Enhanced Nova Cannon Rocket Launcher Mini Grenade Launcher Plasma Sword Plasma Sword Lance Kinetic Spear [Rating: 190] Favorites ----------- Power Light Angular Momentum Engine Engine Light Angular Momentum Engine Power Core Light Nuclear Core Reactor Light Particle Reactor Propulsion Improved VTOL Module Treads Improved Treads Wheel Compact Wheel Hover Unit Improved Linear Gravjet Flight Unit Improved VTOL Module Utility Advanced Hacking Suite Device Structural Scanner Storage Lightpack 2.0 Processor Improved Signal Interpreter Hackware Advanced Hacking Suite Protection Light Armor Plating Weapon Heavy Assault Rifle Energy Gun Medium Laser Energy Cannon Heavy Plasma Cannon Ballistic Gun Heavy Assault Rifle Launcher Mini Grenade Launcher Slashing Weapon Axe Piercing Weapon Spear Build | -11 -10 -10 -10 -9 -8 -7 -7 -6 -5 -4 -3 -2 -1 ------- Run | Yrd Mat Min Exi Min Mat Fac Sto Fac Fac Fac Res Res Acc Slots Evolved 18 | . . . . . 4 2 . 2 2 2 2 2 2 Power 1 | . . . . . . . . . . . 1 . . Propulsion 4 | . . . . . 2 . . . . 1 1 . . Utility 13 | . . . . . 2 2 . 2 2 1 . 2 2 Weapon . | . . . . . . . . . . . . . . Parts Attached 164 | 6 15 3 2 . 29 10 5 12 11 18 18 16 19 Power 17 | 1 2 . . . 3 1 2 1 . . 3 1 3 Engine 11 | 1 2 . . . 3 1 1 1 . . 1 . 1 Core 3 | . . . . . . . 1 . . . 1 . 1 Reactor 3 | . . . . . . . . . . . 1 1 1 Propulsion 49 | 2 2 2 . . 10 4 . 3 4 2 7 6 7 Treads 8 | 2 . . . . 6 . . . . . . . . Leg . | . . . . . . . . . . . . . . Wheel 10 | . 2 2 . . 4 . . 1 . . . . 1 Hover 19 | . . . . . . . . . . . 7 6 6 Flight 12 | . . . . . . 4 . 2 4 2 . . . Utility 62 | 1 7 1 1 . 10 4 3 6 3 10 6 5 5 Device 20 | . . . . . 2 1 2 2 . 4 4 . 5 Storage 6 | 1 4 . . . . 1 . . . . . . . Processor 6 | . 1 1 . . . 1 . 1 1 . . 1 . Hackware 14 | . . . . . . . 1 2 2 4 2 3 . Protection 16 | . 2 . 1 . 8 1 . 1 . 2 . 1 . Artifact . | . . . . . . . . . . . . . . Weapon 36 | 2 4 . 1 . 6 1 . 2 4 6 2 4 4 Energy Gun 3 | 2 1 . . . . . . . . . . . . Energy Cannon 9 | . . . . . . . . 1 2 3 . 2 1 Ballistic Gun 10 | . 3 . 1 . 6 . . . . . . . . Ballistic Cannon . | . . . . . . . . . . . . . . Launcher 1 | . . . . . . . . . . . . . 1 Special Weapon . | . . . . . . . . . . . . . . Impact Weapon . | . . . . . . . . . . . . . . Slashing Weapon 8 | . . . . . . 1 . 1 1 1 . 2 2 Piercing Weapon 5 | . . . . . . . . . 1 2 2 . . Special Melee Weapon . | . . . . . . . . . . . . . . Unidentified Prototypes 2 | . . . . . . . . . . . . 2 . Corrupted Parts 1 | . . . . . . . 1 . . . . . . System Corruption 1 | . . . . . . . 1 . . . . . . Parts Lost 44 | . 1 1 . . 11 . 3 3 . 2 1 . 22 Power 9 | . . . . . 2 . 2 . . . 1 . 4 Propulsion 15 | . 1 1 . . 3 . . 1 . 1 . . 8 Utility 14 | . . . . . 4 . 1 2 . . . . 7 Weapon 6 | . . . . . 2 . . . . 1 . . 3 Highest Loss Streak 22 | . 1 1 . . 4 . 2 2 . 2 1 . 22 To Critical Strikes . | . . . . . . . . . . . . . . Average Slot Usage (%) 87 | . 97 100 71 85 92 73 72 76 78 79 88 87 76 Engine 7 | . 14 14 14 14 7 5 3 6 5 5 8 1 . Treads 9 | . 22 9 . . 28 . . . . . . . . Wheel 5 | . 4 18 28 28 5 . . . . . . . . Hover 5 | . . . . . . . . . . . 28 24 18 Flight 7 | . . . . . . 28 30 25 23 22 . . . Device 3 | . . . . . 4 7 8 8 5 3 3 4 6 Storage 8 | . 14 14 14 14 9 7 7 6 5 5 4 4 4 Processor 5 | . 9 4 14 . . . . 6 10 10 9 5 4 Hackware 10 | . . . . . . . 6 14 19 26 23 28 26 Protection 6 | . 3 9 . 14 18 14 3 . . . . 3 3 Energy Gun 1 | . 8 . . . . . . . . . . . . Energy Cannon 1 | . . . . . . . . . . 2 4 3 3 Ballistic Gun 9 | . 18 28 . 14 17 . . . . . . . . Slashing Weapon 1 | . . . . . . 6 7 4 2 . . 4 3 Naked Turns . | . . . . . . . . . . . . . . Heaviest Build 69 | 14 52 52 49 49 69 20 20 21 25 27 42 47 55 Greatest Support 91 | 40 40 26 26 26 91 20 20 20 21 30 62 68 68 Greatest Overweight (x) 5 | . 3 5 1 1 2 . 5 1 1 . . . . Average Overweight (x) . | . 1 1 1 1 . . . . . . . . . Largest Inventory Capacity 40 | 8 20 20 20 20 20 40 40 40 40 40 40 40 40 Average Capacity 28 | 7 14 20 20 20 20 39 40 40 40 40 40 40 40 Most Carried 39 | 2 16 16 20 18 20 20 15 27 37 38 37 38 39 Average Carried 22 | . 10 15 18 18 19 14 12 21 31 35 29 32 36 Final Capacity 40 | 8 20 20 20 20 20 40 40 40 40 40 40 40 40 Final Carried 37 | 2 15 15 18 18 20 13 14 25 37 36 27 37 23 Class Distribution -------------------- 49% | Mutant 17% | Wizard-Scout 15% | Hauler-Sprinter 11% | Hacker-Sprinter Dominant Class ---------------- Mutant | -10/Materials Mutant | -10/Mines Mutant | -10/Exiles Mutant | -9/Mines Mutant | -8/Materials Hauler-Sprinter | -7/Factory Hauler-Sprinter | -7/Storage Hauler-Sprinter | -6/Factory Hacker-Sprinter | -5/Factory Hacker-Sprinter | -4/Factory Wizard-Scout | -3/Research Wizard-Scout | -2/Research Wizard-Scout | -1/Access Resources | -11 -10 -10 -10 -9 -8 -7 -7 -6 -5 -4 -3 -2 -1 ----------- Run | Yrd Mat Min Exi Min Mat Fac Sto Fac Fac Fac Res Res Acc Matter Collected 2196 | 159 304 87 . . 836 . 82 123 150 70 153 232 . Remotely . | . . . . . . . . . . . . . . Salvage Created 2077 | . 347 129 . . 1149 . 56 26 232 113 . . 25 Parts 122 | . 19 4 . . 69 . 1 6 11 12 . . . Haulers Intercepted 3 | . 1 . . . 2 . . . . . . . . Recyclers Shooed 2 | . . . . . 2 . . . . . . . . Parts Field Recycled . | . . . . . . . . . . . . . . Retrieved Matter . | . . . . . . . . . . . . . . Parts Self-Destructed . | . . . . . . . . . . . . . . Prevented . | . . . . . . . . . . . . . . Kills | -11 -10 -10 -10 -9 -8 -7 -7 -6 -5 -4 -3 -2 -1 ------- Run | Yrd Mat Min Exi Min Mat Fac Sto Fac Fac Fac Res Res Acc Combat Hostiles Destroyed 34 | . 8 2 . . 19 . . . . 4 . . 1 Melee 4 | . . . . . . . . . . 4 . . . Guns 29 | . 8 2 . . 19 . . . . . . . . AOE 1 | . . . . . . . . . . . . . 1 Classes Destroyed 11 | . 6 . . . 4 . . . 1 . . . . Worker 9 | . 1 1 . . 5 . . . 2 . . . . Builder 2 | . . . . . 1 . . . . 1 . . . Tunneler 1 | . . . . . . . . . 1 . . . . Hauler 3 | . 1 . . . 2 . . . . . . . . Recycler 2 | . . . . . 1 . . . 1 . . . . Operator 4 | . 1 . . . . . 1 1 1 . . . . Watcher 2 | . 1 . . . . . 1 . . . . . . Swarmer 12 | . 3 . . . 4 . . . . 4 . . 1 Grunt 17 | . 5 2 . . 10 . . . . . . . . Sentry 3 | . . . . . 3 . . . . . . . . Hunter 2 | . . . . . 2 . . . . . . . . Best Kill Streak 4 | . 4 2 . . 4 . 1 1 1 4 . . 1 Combat Bots Only 4 | . 3 2 . . 3 . . . . 4 . . 1 Max Kills in Single Turn 2 | . 1 1 . . 2 . 1 1 1 1 . . 1 Gunslinging . | . . . . . . . . . . . . . . Exploded 1 | . . . . . . . . . . . . . 1 Melee 1 | . . . . . . . . . . 1 . . . Uniques/NPCs Destroyed . | . . . . . . . . . . . . . . Combat | -11 -10 -10 -10 -9 -8 -7 -7 -6 -5 -4 -3 -2 -1 -------- Run | Yrd Mat Min Exi Min Mat Fac Sto Fac Fac Fac Res Res Acc Hostile Shots Fired 648 | . 49 12 . . 174 1 129 4 . 44 39 . 196 Missed 247 | . 9 3 . . 35 . 75 1 . 17 26 . 81 Damage Taken 6702 | . 483 130 . . 2051 16 602 56 . 416 206 103 2639 Core 1142 | . 63 25 . . 196 16 133 . . 80 24 47 558 Absorbed by Shields 6 | . . . . . . . . . . . . . 6 Redirected to Shielding 117 | . 12 . . . . . . . . . . 18 87 Regen/Repaired (Parts) 171 | . 39 . . . 72 . . . 60 . . . . Core Remaining (%) 88 | 100 . . . 64 64 . 78 100 100 93 98 96 . Volleys Fired 202 | . 40 6 . . 102 . . 1 8 20 4 12 9 Largest 2 | . 2 2 . . 2 . . 1 1 1 1 1 1 Hottest 120 | . 90 46 . . 48 . . 90 90 90 90 120 120 Shots Fired 337 | . 79 12 . . 193 . . 1 8 20 4 12 8 Gun 284 | . 79 12 . . 193 . . . . . . . . Cannon 51 | . . . . . . . . 1 8 20 4 12 6 Launcher 2 | . . . . . . . . . . . . . 2 Special . | . . . . . . . . . . . . . . Kinetic 246 | . 41 12 . . 193 . . . . . . . . Thermal 80 | . 29 . . . . . . 1 8 20 4 12 6 Explosive 2 | . . . . . . . . . . . . . 2 Electromagnetic 9 | . 9 . . . . . . . . . . . . Robot Hit Streak 11 | . 11 6 . . 11 . . . . . . . . Robot Miss Streak 4 | . 4 2 . . 3 . . . . . 1 . 2 Penetration Max . | . . . . . . . . . . . . . . Secondary Targets 2 | . . 1 . . 1 . . . . . . . . Max Gunslinging Chain 1 | . . 1 . . 1 . . . . . . . . Shots Hit Robots 212 | . 52 7 . . 130 . 4 1 8 10 . . . Core Hits 87 | . 20 4 . . 50 . 1 . 4 4 . . 4 Critical Kills . | . . . . . . . . . . . . . . Critical Parts Destroyed 3 | . . . . . 3 . . . . . . . . Critical Strikes 7 | . 3 . . . 3 . . . . 1 . . . Burn 3 | . 3 . . . . . . . . . . . . Destroy 3 | . . . . . 3 . . . . . . . . Impale 1 | . . . . . . . . . . 1 . . . Melee Attacks 168 | . . . . . . 1 32 21 38 25 18 24 9 Impact . | . . . . . . . . . . . . . . Slashing 117 | . . . . . . 1 32 21 26 4 . 24 9 Piercing 51 | . . . . . . . . . 12 21 18 . . Sneak Attacks 9 | . . . . . . . 2 1 4 2 . . . Combat Hostiles . | . . . . . . . . . . . . . . Follow-up Attacks 1 | . . . . . . . . . . 1 . . . Damage Inflicted 4115 | . 694 188 . . 1892 . 243 73 459 389 . . 177 Guns 2682 | . 654 163 . . 1865 . . . . . . . . Cannons . | . . . . . . . . . . . . . . Explosions 213 | . 36 . . . . . . . . . . . 177 Melee 1164 | . . . . . . . 243 73 459 389 . . . Ramming 56 | . 4 25 . . 27 . . . . . . . . Kinetic 2338 | . 310 163 . . 1865 . . . . . . . . Thermal 299 | . 299 . . . . . . . . . . . . Explosive 177 | . . . . . . . . . . . . . 177 Electromagnetic 81 | . 81 . . . . . . . . . . . . Impact . | . . . . . . . . . . . . . . Slashing 660 | . . . . . . . 243 73 271 73 . . . Piercing 504 | . . . . . . . . . 188 316 . . . Highest Corruption 11 | . . . . . . . 1 . . . 1 . 11 Average Corruption 1 | . . . . . . . 1 . . . 1 . 2 Corruption Purged . | . . . . . . . . . . . . . . Corruption Blocked . | . . . . . . . . . . . . . . Effects 4 | . . . . . . . . . . . . . 4 Message Errors 1 | . . . . . . . . . . . . . 1 Heat Flow Errors 1 | . . . . . . . . . . . . . 1 Data Loss (major) 1 | . . . . . . . . . . . . . 1 Weapon Failures 1 | . . . . . . . . . . . . . 1 Overload Shots . | . . . . . . . . . . . . . . Overflow Damage 230 | . . . . . . . 79 38 37 71 . . 5 Projectiles . | . . . . . . . . . . . . . . Explosions 5 | . . . . . . . . . . . . . 5 Melee 225 | . . . . . . . 79 38 37 71 . . . Knockbacks 1 | . . . . . 1 . . . . . . . . Impact 1 | . . . . . 1 . . . . . . . . Kinetic . | . . . . . . . . . . . . . . Secondary . | . . . . . . . . . . . . . . Self-Inflicted Damage 76 | . 2 12 . . 13 . . . . . . . 49 Shots 1 | . . . . . . . . . . . . . 1 Rammed 4 | . 1 1 . 1 1 . . . . . . . . Targets Rammed 4 | . 1 1 . 1 1 . . . . . . . . Kicked . | . . . . . . . . . . . . . . Crushed . | . . . . . . . . . . . . . . Highest Temperature 396 | . 396 33 . . 93 1 13 38 208 124 381 318 228 Average Temperature 97 | . 163 23 . . 35 1 7 20 84 37 99 105 90 Received Heat Transfer 1050 | . 288 84 . . 522 9 90 27 . 9 12 . 9 Effects 7 | . 1 . . . . . . . . . 5 1 . Shutdowns 1 | . 1 . . . . . . . . . . . . Energy Bleed 2 | . . . . . . . . . . . 1 1 . Interference 3 | . . . . . . . . . . . 3 . . Matter Decay 1 | . . . . . . . . . . . 1 . . Siege Activations . | . . . . . . . . . . . . . . Robots Corrupted . | . . . . . . . . . . . . . . Combat Hostiles . | . . . . . . . . . . . . . . Parts Fried . | . . . . . . . . . . . . . . Impact Corruptions . | . . . . . . . . . . . . . . Robots Melted . | . . . . . . . . . . . . . . Combat Hostiles . | . . . . . . . . . . . . . . Parts Melted 3 | . 3 . . . . . . . . . . . . Heat Transferred 1012 | . 1012 . . . . . . . . . . . . Parts Sabotaged . | . . . . . . . . . . . . . . Parts Stolen . | . . . . . . . . . . . . . . Parts Stripped . | . . . . . . . . . . . . . . Power Chain Reactions 1 | . 1 . . . . . . . . . . . . Alert | -11 -10 -10 -10 -9 -8 -7 -7 -6 -5 -4 -3 -2 -1 ------- Run | Yrd Mat Min Exi Min Mat Fac Sto Fac Fac Fac Res Res Acc Peak Influence 572 | . 171 45 . . 325 140 572 347 156 204 209 159 75 Initial 259 | . . 24 . . . 82 63 259 66 12 122 54 3 Average 96 | . 77 14 . . 145 103 307 307 39 72 109 62 31 Maximum Alert Level 2 | . . . . . 1 . 2 1 . 1 1 . . Low Security (%) 86 | 100 100 100 . 100 71 100 30 8 100 99 86 100 100 Level 1 12 | . . . . . 28 . 37 91 . . 13 . . Level 2 1 | . . . . . . . 32 . . . . . . Level 3 . | . . . . . . . . . . . . . . Level 4 . | . . . . . . . . . . . . . . Level 5 . | . . . . . . . . . . . . . . High Security . | . . . . . . . . . . . . . . Max Security . | . . . . . . . . . . . . . . Squads Dispatched 29 | . 2 . . . 2 2 2 4 6 2 4 2 3 Investigation 18 | . 1 . . . 2 2 1 4 4 1 2 1 . Extermination 6 | . . . . . . . . . 1 1 1 1 2 Reinforcement 5 | . 1 . . . . . 1 . 1 . 1 . 1 Assault . | . . . . . . . . . . . . . . Garrison . | . . . . . . . . . . . . . . Intercept . | . . . . . . . . . . . . . . Searches Triggered . | . . . . . . . . . . . . . . Construction Impeded 1 | . . . . . . . . . . . 1 . . Haulers Reinforced . | . . . . . . . . . . . . . . Active Scanning Responses . | . . . . . . . . . . . . . . Cargo Convoy Interrupts . | . . . . . . . . . . . . . . Stealth | -11 -10 -10 -10 -9 -8 -7 -7 -6 -5 -4 -3 -2 -1 --------- Run | Yrd Mat Min Exi Min Mat Fac Sto Fac Fac Fac Res Res Acc Distress Signals 6 | . 2 . . . 1 . 1 . 1 . 1 . . Communications Jammed 11 | . . . . . . . 8 . . . . . 3 Distress Signals 11 | . . . . . . . 8 . . . . . 3 Times Spotted 146 | . 19 2 . . 31 3 28 6 12 19 8 . 18 Peak Tracking Total 13 | . 3 2 . . 4 2 12 4 5 6 6 1 13 Tactical Retreats 21 | . 3 . . . 4 . 5 1 . 3 3 . 2 Traps | -11 -10 -10 -10 -9 -8 -7 -7 -6 -5 -4 -3 -2 -1 ------- Run | Yrd Mat Min Exi Min Mat Fac Sto Fac Fac Fac Res Res Acc Traps Triggered 10 | . . . . . 1 1 3 1 . . . 2 2 Indirectly . | . . . . . . . . . . . . . . Trap Hack Attempts . | . . . . . . . . . . . . . . Triggered . | . . . . . . . . . . . . . . Disarmed 6 | . . . . . . . . 6 . . . . . Reprogrammed . | . . . . . . . . . . . . . . Reused . | . . . . . . . . . . . . . . Traps Extracted . | . . . . . . . . . . . . . . Installed . | . . . . . . . . . . . . . . Triggered . | . . . . . . . . . . . . . . Machines | -11 -10 -10 -10 -9 -8 -7 -7 -6 -5 -4 -3 -2 -1 ---------- Run | Yrd Mat Min Exi Min Mat Fac Sto Fac Fac Fac Res Res Acc Machines Disabled 4 | . 1 . . . . . 1 . 1 1 . . . Max in Single Turn 1 | . 1 . . . . . 1 . 1 1 . . . Garrison Access 4 | . . . . . . . . . 1 . . 2 1 Machines Repaired . | . . . . . . . . . . . . . . Machines Dismantled . | . . . . . . . . . . . . . . Machines Sabotaged . | . . . . . . . . . . . . . . Overloaded Fab Kills . | . . . . . . . . . . . . . . Hacking | -11 -10 -10 -10 -9 -8 -7 -7 -6 -5 -4 -3 -2 -1 --------- Run | Yrd Mat Min Exi Min Mat Fac Sto Fac Fac Fac Res Res Acc Machines Accessed 80 | . 10 . 1 . 5 7 10 10 12 5 4 14 2 Terminals 45 | . 7 . . . 2 3 9 4 6 2 3 8 1 Fabricators 8 | . . . . . . . . 2 3 1 1 1 . Repair Stations 5 | . 1 . . . 1 1 . 1 1 . . . . Recycling Units 9 | . 2 . . . . 1 1 2 1 . . 2 . Scanalyzers 6 | . . . . . 2 . . 1 . 2 . 1 . Garrison Access 6 | . . . . . . 2 . . 1 . . 2 1 Total Hacks 276 | . 40 . 1 . 18 19 15 28 52 19 15 61 8 Successful 161 | . 25 . 1 . 15 5 7 14 31 9 8 42 4 Failed 114 | . 15 . . . 3 14 8 14 21 10 7 18 4 Catastrophic 17 | . 1 . . . . 2 1 1 9 2 . . 1 Database Lockouts 1 | . . . . . . . . . . . . 1 . Manual 140 | . 27 . 1 . 2 10 8 15 32 9 6 28 2 Terminals 179 | . 30 . . . 5 12 14 15 36 8 12 40 7 Fabricators 22 | . . . . . . . . 5 6 6 3 2 . Repair Stations 19 | . 3 . . . 5 2 . 3 6 . . . . Recycling Units 20 | . 7 . . . . 1 1 2 1 . . 8 . Scanalyzers 25 | . . . . . 8 . . 3 . 5 . 9 . Garrison Access 10 | . . . . . . 4 . . 3 . . 2 1 Terminal Hacks 55 | . 12 . 1 . 3 . 5 4 11 . 2 15 2 Record 1 | . 1 . . . . . . . . . . . . Part Schematic 4 | . . . . . . . . 1 1 . . 2 . Robot Analysis 5 | . 5 . . . . . . . . . . . . Open Door 5 | . . . . . . . 5 . . . . . . Level Access Points 4 | . . . . . . . . 1 1 . 1 1 . Machine Index 1 | . . . . . . . . . . . . 1 . Terminal Index 2 | . . . . . . . . . 1 . . 1 . Alert Level 1 | . . . . . . . . . 1 . . . . Unreport Threat 4 | . . . . . . . . . 1 . . 3 . Locate Traps 7 | . 2 . . . 1 . . . 1 . . 2 1 Disarm Traps 1 | . . . . . . . . 1 . . . . . Maintenance Status 1 | . . . . . . . . . . . . 1 . Extermination Status 1 | . . . . . . . . . . . . 1 . Recall Investigation 3 | . . . . . . . . . 2 . . 1 . Recall Extermination 1 | . . . . . . . . . . . . 1 . Recall Reinforcements 1 | . . . . . . . . 1 . . . . . Hauler Manifests 1 | . 1 . . . . . . . . . . . . Zone Layout 11 | . 3 . . . 2 . . . 3 . 1 1 1 Derelict Proto ID Bank 1 | . . . 1 . . . . . . . . . . Fabricator Hacks 13 | . . . . . . . . . 4 5 2 2 . Load Schematic 8 | . . . . . . . . . 3 3 1 1 . Build 5 | . . . . . . . . . 1 2 1 1 . Repair Station Hacks 12 | . 2 . . . 3 . . 2 5 . . . . Scan Component 7 | . 1 . . . 2 . . 1 3 . . . . Repair 5 | . 1 . . . 1 . . 1 2 . . . . Recycling Unit Hacks 15 | . 4 . . . . 1 1 2 1 . . 6 . Report Inventory 9 | . 2 . . . . 1 1 2 1 . . 2 . Retrieve Matter 3 | . 1 . . . . . . . . . . 2 . Retrieve Components 3 | . 1 . . . . . . . . . . 2 . Scanalyzer 19 | . . . . . 7 . . 1 . 2 . 9 . Insert Component 12 | . . . . . 4 . . 1 . 1 . 6 . Analyze 7 | . . . . . 3 . . . . 1 . 3 . Garrison Access Hacks 4 | . . . . . . . . . 1 . . 2 1 Seal Access 4 | . . . . . . . . . 1 . . 2 1 Unauthorized Hacks 43 | . 7 . . . 2 4 1 5 9 2 4 8 1 Terminals 37 | . 7 . . . 2 4 1 3 7 1 3 8 1 Assimilate 2 | . . . . . . 1 . . 1 . . . . Botnet 35 | . 7 . . . 2 3 1 3 6 1 3 8 1 Fabricators 6 | . . . . . . . . 2 2 1 1 . . Recompile 6 | . . . . . . . . 2 2 1 1 . . Repair Stations . | . . . . . . . . . . . . . . Recycling Units . | . . . . . . . . . . . . . . Scanalyzers . | . . . . . . . . . . . . . . Garrison Access . | . . . . . . . . . . . . . . Data Cores Recovered 2 | . . . . . . . 1 1 . . . . . Used 1 | . . . . . . . 1 . . . . . . Hacking Detections 66 | . 9 . . . 5 6 10 7 10 5 3 10 1 Full Trace Events 11 | . 1 . . . 2 2 . 2 2 . 1 1 . Feedback Events 1 | . . . . . . . . 1 . . . . . Hackware Fried 1 | . . . . . . . . 1 . . . . . Feedback Blocked . | . . . . . . . . . . . . . . Robot Schematics Acquired . | . . . . . . . . . . . . . . Robots Built . | . . . . . . . . . . . . . . Authchips . | . . . . . . . . . . . . . . Time . | . . . . . . . . . . . . . . Total Robot Build Rating . | . . . . . . . . . . . . . . Part Schematics Acquired 9 | . . . . . 1 . . 1 1 1 . 5 . Parts Built 5 | . . . . . . . . . 1 2 1 1 . Authchips 3 | . . . . . . . . . . 2 1 . . Time 388 | . . . . . . . . . 106 212 35 35 . Total Part Build Rating 30 | . . . . . . . . . 6 12 6 6 . Parts Repaired 5 | . 1 . . . 1 . . 1 2 . . . . Time 210 | . 26 . . . 26 . . 38 120 . . . . Parts Recycled . | . . . . . . . . . . . . . . Recycled Matter . | . . . . . . . . . . . . . . Retrieved Matter . | . . . . . . . . . . . . . . Retrieved Components 9 | . 3 . . . . . . . . . . 6 . Parts Scanalyzed 7 | . . . . . 2 . . 1 . 1 . 3 . Part Schematics Acquired 5 | . . . . . 1 . . . . 1 . 3 . Parts Damaged 1 | . . . . . 1 . . . . . . . . Bothacking | -11 -10 -10 -10 -9 -8 -7 -7 -6 -5 -4 -3 -2 -1 ------------ Run | Yrd Mat Min Exi Min Mat Fac Sto Fac Fac Fac Res Res Acc Used RIF Installer . | . . . . . . . . . . . . . . Robots Hacked . | . . . . . . . . . . . . . . Non-combat . | . . . . . . . . . . . . . . Combat . | . . . . . . . . . . . . . . Robot Hacks Applied . | . . . . . . . . . . . . . . Relay Couplers Released . | . . . . . . . . . . . . . . Fabnet Peak Effective % . | . . . . . . . . . . . . . . Robots Rewired . | . . . . . . . . . . . . . . Allies Hacked . | . . . . . . . . . . . . . . Hacks Repelled . | . . . . . . . . . . . . . . Allies | -11 -10 -10 -10 -9 -8 -7 -7 -6 -5 -4 -3 -2 -1 -------- Run | Yrd Mat Min Exi Min Mat Fac Sto Fac Fac Fac Res Res Acc Total Allies 3 | . . . . . . . 2 . 1 . . . . Largest Group 2 | . . . . . . . 2 . 1 . . . . Highest-Rated Group 62 | . . . . . . . 62 . 10 . . . . Highest-Rated Ally 31 | . . . . . . . 31 . 10 . . . . Total Orders 2 | . . . . . . . . . 2 . . . . STAY 1 | . . . . . . . . . 1 . . . . FOLLOW 1 | . . . . . . . . . 1 . . . . Ally Attacks 6 | . . . . . . . 6 . . . . . . Total Damage 100 | . . . . . . . 100 . . . . . . Kills 2 | . . . . . . . 2 . . . . . . Allies Corrupted . | . . . . . . . . . . . . . . Allies Melted . | . . . . . . . . . . . . . . Intel | -11 -10 -10 -10 -9 -8 -7 -7 -6 -5 -4 -3 -2 -1 ------- Run | Yrd Mat Min Exi Min Mat Fac Sto Fac Fac Fac Res Res Acc Robot Analysis Total 5 | . 5 . . . . . . . . . . . . Derelict Logs Recovered . | . . . . . . . . . . . . . . Drone Launches 2 | . . . . . . . 2 . . . . . . Drone Recoveries . | . . . . . . . . . . . . . . Exploration | -11 -10 -10 -10 -9 -8 -7 -7 -6 -5 -4 -3 -2 -1 ------------- Run | Yrd Mat Min Exi Min Mat Fac Sto Fac Fac Fac Res Res Acc Turns Passed 9573 | 75 1496 998 284 175 1779 197 377 436 982 790 631 900 453 Spaces Moved 9996 | 44 847 356 267 84 848 589 702 858 1408 1061 1007 1260 665 Core 6 | 5 . . . . . . 1 . . . . . . Treads 1206 | 39 491 . . . 676 . . . . . . . . Legs . | . . . . . . . . . . . . . . Wheels 1240 | . 356 356 267 84 172 . . 5 . . . . . Hover 2932 | . . . . . . . . . . . 1007 1260 665 Flight 4612 | . . . . . . 589 701 853 1408 1061 . . . Fastest Speed 21 | 50 110 105 105 105 95 27 27 26 26 24 21 26 30 Average Speed 54 | 147 150 116 105 105 146 27 27 28 28 25 25 28 35 Slowest Speed 320 | 160 240 155 105 105 320 27 300 115 99 27 32 38 60 Overloaded Moves 11 | . . . . . . . . . . . 11 . . Propulsion Burnouts . | . . . . . . . . . . . . . . Robots Hopped 41 | . . . . . . 4 24 5 5 3 . . . Cave-ins Triggered . | . . . . . . . . . . . . . . Exploration Rate (%) 39 | 4 100 63 63 14 50 15 91 28 26 12 27 35 19 Regions Visited 13 Branch Regions 4 Pre-discovered Areas 1 | . . . . . . . 1 . . . . . . Known Exits Taken 8 | . . 1 1 . . 1 . 1 1 1 1 1 . Unknown Exits Taken 5 | 1 1 . . 1 1 . 1 . . . . . . Scrap Searched 1 | . . 1 . . . . . . . . . . . Spaces Dug 167 | . . . . . . 1 23 21 33 29 16 29 15 Terrain Destroyed 185 | . 6 . . . . 1 23 21 33 29 17 29 26 Melee 123 | . . . . . . 1 23 20 25 10 13 22 9 Projectile 45 | . . . . . . . . 1 8 19 4 7 6 AOE 17 | . 6 . . . . . . . . . . . 11 Terrain Rammed . | . . . . . . . . . . . . . . Walls Destroyed . | . . . . . . . . . . . . . . Machines Disabled . | . . . . . . . . . . . . . . Actions | -11 -10 -10 -10 -9 -8 -7 -7 -6 -5 -4 -3 -2 -1 --------- Run | Yrd Mat Min Exi Min Mat Fac Sto Fac Fac Fac Res Res Acc Total 13435 | 51 995 926 271 170 1199 625 804 1002 1918 1516 1348 1752 858 Wait 2736 | . 61 561 . 86 175 15 84 78 430 386 287 423 150 Move 9906 | 43 846 355 266 83 847 580 657 848 1397 1054 1006 1259 665 Hop 36 | . . . . . . 4 20 4 5 3 . . . Pick Up 131 | 2 22 . 1 . 26 4 5 19 23 7 7 12 3 Fast Attach 21 | 6 1 . . . 7 . 1 . 1 1 . 4 . Attach 72 | . 2 1 1 . 11 9 2 7 5 7 7 5 15 Detach 19 | . . . 2 . . 3 . 2 1 2 1 7 1 Swap 71 | . 12 2 1 . 11 1 2 5 5 10 11 7 4 Drop 55 | . 10 . . . 19 8 1 2 5 2 7 1 . Fire 202 | . 40 6 . . 102 . . 1 8 20 4 12 9 Melee 165 | . . . . . . 1 32 21 38 24 18 22 9 Ram 4 | . 1 1 . 1 1 . . . . . . . . Kick . | . . . . . . . . . . . . . . Crush . | . . . . . . . . . . . . . . Escape Stasis 17 | . . . . . . . . 15 . . . . 2 Rewire . | . . . . . . . . . . . . . . Trap . | . . . . . . . . . . . . . . Miscellaneous . | . . . . . . . . . . . . . . Route ------- -11/Scrapyard -10/Materials (discovered 5 exits: *Mat x3 / [*Min] / [*Sub]) -10/Mines (discovered 3 exits: *Mat x2 / *Exi) -10/Exiles -9/Mines -8/Materials (discovered 2 exits: *Fac x2) -7/Factory -7/Storage -6/Factory (discovered 4 exits: *Fac x4) -5/Factory (discovered 4 exits: *Fac x4) -4/Factory -3/Research (discovered 3 exits: *Res x3) -2/Research (discovered 3 exits: *Acc x3) -1/Access History --------- Turn | Location | Event 16 | -11/Scrapyard | Discovered new exit (range 15) 76 | -11/Scrapyard | Entered Materials 301 | -10/Materials | Build established: Mutant 329 | -10/Materials | Discovered new exit (range 14) 520 | -10/Materials | Discovered new exit (range 20) 872 | -10/Materials | Discovered new exit (range 15) 1065 | -10/Materials | Discovered new exit (range 12) 1463 | -10/Materials | Discovered new exit (range 6) 1537 | -10/Materials | Repaired Lgt. Armor Plating 1572 | -10/Materials | Entered Mines 1575 | -10/Mines | Assembled infested the area 2175 | -10/Mines | Discovered new exit (range 7) 2232 | -10/Mines | Identified exit to Materials 2348 | -10/Mines | Discovered exit to Materials (range 3) 2564 | -10/Mines | Deemed a non-threat by the Exiles lab entrance 2565 | -10/Mines | Discovered new exit (range 5) 2569 | -10/Mines | Identified exit to Exiles 2570 | -10/Mines | Entered Exiles 2596 | -10/Exiles | Met 8R-AWN 2615 | -10/Exiles | Met EX-HEX 2646 | -10/Exiles | Met EX-BIN 2661 | -10/Exiles | Aligned with FarCom system 2662 | -10/Exiles | Given EX-Vault access code 2691 | -10/Exiles | Opened EX-Vault 2704 | -10/Exiles | Found Lightpack 2.0 2728 | -10/Exiles | Warned to stay clear of 0b10 Research branches 2756 | -10/Exiles | Met EX-DEC 2842 | -10/Exiles | Discovered new exit (range 11) 2851 | -10/Exiles | Identified exit to Mines 2854 | -10/Exiles | Left Exiles lab with Lightpack 2.0 2854 | -10/Exiles | Entered Mines 3022 | -9/Mines | Discovered new exit (range 7) 3029 | -9/Mines | Entered Materials 3029 | -8/Materials | Evolved 4 slots: Propulsion x2, Utility x2 3307 | -8/Materials | Lost 4 parts (1p2n1w) 3360 | -8/Materials | Lost 3 parts (1n1u1w) 3421 | -8/Materials | Discovered new exit (range 9) 4068 | -8/Materials | Repaired Lgt. Armor Plating 4595 | -8/Materials | Discovered new exit (range 9) 4808 | -8/Materials | Entered Factory 4808 | -7/Factory | Evolved 2 slots: Utility x2 4922 | -7/Factory | Discovered new exit (range 5) 5005 | -7/Factory | Identified exit to Storage 5005 | -7/Factory | Entered Storage 5097 | -7/Storage | Build established: Hauler-Sprinter 5143 | -7/Storage | Learned location of Armory (-3) 5183 | -7/Storage | Met a pair of Derelict thieves 5380 | -7/Storage | Discovered new exit (range 7) 5382 | -7/Storage | Entered Factory 5382 | -6/Factory | Evolved 2 slots: Utility x2 5512 | -6/Factory | Spotted B-75 Beast 5635 | -6/Factory | Hacking Suite fried by hacking feedback 5742 | -6/Factory | Repaired Faulty Imp. VTOL Module? 5808 | -6/Factory | Discovered new exit (range 14) 5814 | -6/Factory | Identified exit to Factory 5818 | -6/Factory | Entered another Factory area 5818 | -5/Factory | Evolved 2 slots: Utility x2 5925 | -5/Factory | Identified exit to Factory 5987 | -5/Factory | Spotted B-75 Beast 6232 | -5/Factory | Repaired Imp. VTOL Module 6294 | -5/Factory | Repaired Imp. VTOL Module 6461 | -5/Factory | Found Imp. Powered Armor 6575 | -5/Factory | Fabricated Adv. Hacking Suite? 6607 | -5/Factory | Build established: Hacker-Sprinter 6800 | -5/Factory | Entered another Factory area 6800 | -4/Factory | Evolved 2 slots: Propulsion x1, Utility x1 6872 | -4/Factory | Discovered new exit (range 4) 6873 | -4/Factory | Identified exit to Research 7373 | -4/Factory | Fabricated Adv. Hacking Suite? 7525 | -4/Factory | Fabricated Adv. Hacking Suite? 7590 | -4/Factory | Entered Research 7590 | -3/Research | Evolved 2 slots: Power x1, Propulsion x1 7673 | -3/Research | Identified exit to Research 7875 | -3/Research | Build established: Wizard-Scout 7980 | -3/Research | Fabricated Adv. Hacking Suite (x1) 8216 | -3/Research | Spotted B-86 Titan 8221 | -3/Research | Entered another Research area 8221 | -2/Research | Evolved 2 slots: Utility x2 8486 | -2/Research | Identified exit to Access 8525 | -2/Research | Central database locked down 8542 | -2/Research | Spotted B-90 Cyclops 8739 | -2/Research | Fabricated Adv. System Shield (x1) 8743 | -2/Research | Found Prototype Slashing Weapon 8743 | -2/Research | Identified Molecular Scythe 9036 | -2/Research | Found Quantum Capacitor 9121 | -2/Research | Entered Access 9121 | -1/Access | Evolved 2 slots: Utility x2 9559 | -1/Access | System corruption reached 10% 9574 | -1/Access | Self-destructed Last Messages --------------- 09523_ Penetrated by Slug. 09523_ Slug penetrates Wall. 09524_ Destroyed Xenon Bombardment Thruster. 09525_ Penetrated by Slug. 09525_ Slug penetrates P-80 Master. 09526_ Mni. Grenade Launcher destroyed. 09526_ Cmb. Linear Gravjet destroyed. 09527_ Adv. Hacking Suite destroyed. 09528_ Penetrated by Slug. 09529_ P-80 Master resets S-43 Plague, system corruption cleaned. 09539_ Molecular Scythe destroyed. 09552_ System corrupted: Enh. Nova Cannon failed to cycle. 09556_ O-32 Director: "IFF HANDSHAKE FAILED. SECURING TERMINAL." 09557_ Gravmag System destroyed. 09558_ Lgt. Angular Momentum Engine destroyed. 09558_ ALERT: Hostiles spotted, dispatching reinforcements to Terminal A011. 09559_ Slug penetrates Wall. 09569_ Linear Gravjet destroyed. 09572_ P-80 Master resets R-10 Processor, system corruption cleaned. 09574_ Imp. Gravmag System destroyed. Map ----- +----------------------------------------------------+ | # #???## ##?## # # | | # #???## ##?## ####### ## | | # #???## #####?## ## % # | | # #???## #####?## ## | | # ###### ######## ## " | | # ######################+## """ # | | # ########### ## """ | | # ##???????## ## " | | + ##???????## ## | | # s ##???????## ! ## | | # p##???????## ## " | | # s########?## """""" ## """ # | | ####+### #?## ! """""" ##* """ # | | # # #?## """""" ## " # | | # + #?## """""" ## # | | # + #?## """""" ## # | | # " # #?## ?? !## # | | # "" # #?## ## # | | # "" # ##########+#############+### | | # "" ######## p | | # "" ######## R pp | | # "" #??????# g | | # "" #??????# | | # " #??????# g | | # #??????# t g | | # #??????# @ | | # #??????##################+#############+### | | ##+#####?????????????????## # | | ?????????????????????????## # ] | | ?????????????????????????## "" # | | ?????????????????????????## "" # """""" | | ?????????????????????????## """""" # """""" | | ?????????????????????????## """""" # """""" | | ?????????????????????????## "" # p"""""" | | ?????????????????????????## "" = # """""" | | ?????????????????????????## = # | | ?????????????????????????## # | | ?????????????????????????## " | | ?????????????????????????##[ # | | ?????????????????????????######################+## | | ?????????????????????????################### | | ??????????????????????????????????????????## | | ??????????????????????????????????????????## " | | ??????????????????????????????????????????##"" " | | ??????????????????????????????????????????##"" " | | ??????????????????????????????????????????##"" " | | ??????????????????????????????????????????##G " | | ??????????????????????????????????????????##"" " | | ??????????????????????????????????????????##"" | | ??????????????????????????????????????????##"" | +----------------------------------------------------+ Best States ------------- Heat Dissipation 52 Energy Generation 37 Energy Capacity 265 Matter Stores 300 Matter Capacity 300 Sight Range 23 Terrain Scan Density 10 ECM Strength 2 Jamming Range 14 Armor Coverage 600 Propulsion Shielding 66 Weapon Shielding 33 Phase Shifting 5 Evasion (%) 75 Targeting Accuracy 5 Recoil Reduction 4 Offensive Hacking 56 Defensive Hacking 36 Authchip Count 3 Item Schematics ----------------- Imp. Flight Unit | -8/Materials | Scanalyzed Imp. Hacking Suite | -6/Factory | Hacked Adv. Hacking Suite | -5/Factory | Hacked Cld. Airjet | -4/Factory | Scanalyzed Adv. System Shield | -2/Research | Hacked Biometal Heavy Treads | -2/Research | Hacked Cmb. Linear Gravjet | -2/Research | Scanalyzed Antigrav Array | -2/Research | Scanalyzed Kinetic Spear | -2/Research | Scanalyzed Robot Schematics ------------------ None Fabricated ------------ Adv. Hacking Suite | x1 | -5/Factory Adv. Hacking Suite | x1 | -4/Factory | Authchip Adv. Hacking Suite | x1 | -4/Factory | Authchip Adv. Hacking Suite | x1 | -3/Research | Authchip Adv. System Shield | x1 | -2/Research Alien Tech Used ----------------- None Achievements -------------- Dodgeball, But With Guns Party Time Challenges ------------ None Game ------ Seed TitaniumPrecisionHammer Manual? 0 Play Time 02:53:47 Cumulative 39.1 hours Start 2024.06.19 @ 18:27:44 End 2024.06.20 @ 19:00:51 Sessions 7 Manual Loads 0 Difficulty Rogue Special Mode None Game No. 44 Rogue 37 Adventurer 7 Explorer 0 Win Type - Total 1 Types 1/0/0/0/0/0/0/0/0 Lore% 13 Gallery% 31 Achievement% 33 Wizard Run 0 Options --------- Layout 0 ASCII 0 Keyboard 0 Movement Mouse Keybinds 0 Fullscreen 2 Font 24/Smallcaps Map View 113x50 Zoom Use 0% Tactical HUD 1 Map Filters NONE Filters NONE Steam 1 RUN: 7f93158d-17f0-4f89-972a-f1097196dc5b